fUST/lending_fUST_20240127
["ID","MTS","AMOUNT","RATE_DAILY","PERIOD"]
[312808318,1706285438882,-150.1,0.00040407,2]
[312808319,1706285438902,-157.76962,0.00040411,2]
[312808320,1706285438913,-150.0,0.00040515,2]
[312808321,1706285438922,-160.152521,0.00040547,2]
[312808322,1706285438932,-659.074234,0.00040547,2]
[312808323,1706285438941,-1041.465933,0.00040547,2]
[312808324,1706285438951,-5000.0,0.00040557,7]
[312808325,1706285438960,-5000.0,0.0004073,7]
[312808326,1706285438970,-5000.0,0.0004073,7]
[312808327,1706285438979,-500.0,0.000409,15]
[312808328,1706285438989,-38692.85566876,0.000409,5]
[312808329,1706285438998,-160.177997,0.00040995,21]
[312808330,1706285439008,-320098.97025119,0.00041,2]
[312808331,1706285439017,-659.074234,0.00041053,2]
[312808332,1706285439026,-1041.465933,0.00041053,2]
[312808333,1706285439036,-500.0,0.00041095,2]
[312808334,1706285439045,-1000.0,0.000412,30]
[312808335,1706285439054,-269.20480479,0.0004137,2]
[312808336,1706285439063,-1000.0,0.000415,30]
[312808337,1706285439072,-157.76962,0.00041553,2]
[312808338,1706285439082,-1041.465933,0.0004156,30]
[312808339,1706285439091,-659.074234,0.0004156,30]
[312808340,1706285439101,-9121.34550853,0.00041643,5]
[312808341,1706285439110,-2000.0,0.000417,60]
[312808342,1706285439119,-151.27878534,0.00041703,5]
[312808343,1706285439129,-300.0,0.000418,22]
[312808344,1706285439139,-688.4767231,0.00041978,4]
[312808345,1706285439148,-161.86475749,0.00041978,4]
[312808346,1706285439157,-156.70873528,0.00041978,10]
[312808347,1706285439167,-244.14912804,0.00041978,4]
[312808348,1706285439177,-600.0,0.00041979,4]
[312808349,1706285439186,-315.84299103,0.0004198,4]
[312808350,1706285439196,-133535.92769174,0.0004198,10]
[312808351,1706285439206,-50000.0,0.00042,15]
[312808352,1706285439216,-1847.23,0.00042,15]
[312808353,1706285439227,-500.87,0.00042,7]
[312808354,1706285439236,-5000.0,0.00042,120]
[312808355,1706285439246,-5000.0,0.00042,120]
[312808356,1706285439256,-3697.0,0.00042,120]
[312808357,1706285439265,-1041.465933,0.00042067,30]
[312808358,1706285439276,-659.074234,0.00042067,30]
[312808359,1706285439285,-15085.0,0.00042345,120]
[312808360,1706285439295,-5000.0,0.00042438,15]
[312808361,1706285439305,-5000.0,0.00042438,15]
[312808362,1706285439315,-5000.0,0.00042438,15]
[312808363,1706285439324,-5071.12089849,0.000425,7]
[312808364,1706285439334,-1041.465933,0.00042574,30]
[312808365,1706285439344,-659.074234,0.00042574,30]
[312808366,1706285439354,-157.76962,0.00042694,2]
[312808367,1706285439364,-539.884694,0.000429,7]
[312808368,1706285439373,-150.0,0.000429,18]
[312808369,1706285439382,-1000.0,0.00043,43]
[312808370,1706285439392,-1999.9999997,0.00043,2]
[312808371,1706285439402,-610.84897164,0.00043,2]
[312808372,1706285439412,-47529.0,0.00043,2]
[312808373,1706285439421,-5652.58395533,0.00043,120]
[312808374,1706285439431,-157.07269304,0.00043105,30]
[312808375,1706285439440,-157.07269304,0.00043213,30]
[312808376,1706285439450,-157.07269304,0.00043227,30]
[312808377,1706285439460,-157.07269304,0.00043242,30]
[312808378,1706285439469,-300.0,0.000433,23]
[312808379,1706285439479,-156.19154614,0.00043415,30]
[312808380,1706285439488,-270.17957219,0.00043453,10]
[312808381,1706285439500,-150.0,0.00043515,2]
[312808382,1706285439511,-719.81783755,0.0004362,30]
[312808383,1706285439521,-157.07269304,0.00043658,30]
[312808384,1706285439531,-153.90157927,0.00043693,30]
[312808385,1706285439542,-160.0,0.00043703,3]
[312808386,1706285439553,-157.07269304,0.000438,30]
[312808387,1706285439562,-175.04419341,0.00043824,30]
[312808388,1706285439571,-1200.0,0.00043835,4]
[312808389,1706285439581,-219.5482908,0.00043835,7]
[312808390,1706285439590,-262.072816,0.00043835,7]
[312808391,1706285439599,-500.0,0.00043835,8]
[312808392,1706285439611,-1000.0,0.00043835,7]
[312808393,1706285439620,-428.76701897,0.00043835,2]
[312808394,1706285439632,-500.0,0.00043835,31]
[312808395,1706285439643,-372.86727556,0.00043835,31]
[312808396,1706285439652,-1000.0,0.00043835,2]
[312808397,1706285439662,-500.0,0.00043835,31]
[312808398,1706285439671,-1010.24,0.00043835,31]
[312808399,1706285439680,-500.0,0.00043835,31]
[312808400,1706285439689,-500.0,0.00043835,31]
[312808401,1706285439698,-500.0,0.00043835,31]
[312808402,1706285439708,-500.0,0.00043835,7]
[312808403,1706285439717,-500.0,0.00043835,31]
[312808404,1706285439726,-505.21805616,0.00043835,31]
[312808405,1706285439736,-1880.12,0.00043835,2]
[312808406,1706285439745,-500.0,0.00043835,31]
[312808407,1706285439756,-255.06433237,0.00043835,31]
[312808408,1706285439765,-521.46,0.00043835,31]
[312808409,1706285439775,-500.0,0.00043835,31]
[312808410,1706285439784,-500.0,0.00043835,31]
[312808411,1706285439793,-500.0,0.00043835,31]
[312808412,1706285439802,-500.0,0.00043835,31]
[312808413,1706285439811,-500.0,0.00043835,31]
[312808414,1706285439820,-500.0,0.00043835,31]
[312808415,1706285439830,-500.0,0.00043835,31]
[312808416,1706285439839,-500.0,0.00043835,31]
[312808417,1706285439848,-500.0,0.00043835,31]
[312808418,1706285439857,-500.0,0.00043835,31]
[312808419,1706285439867,-500.0,0.00043835,31]
[312808420,1706285439876,-500.0,0.00043835,31]
[312808421,1706285439885,-500.0,0.00043835,31]
[312808422,1706285439894,-500.0,0.00043835,31]
[312808423,1706285439903,-1251.88,0.00043835,31]
[312808424,1706285439913,-500.0,0.00043835,31]
[312808425,1706285439922,-500.0,0.00043835,31]
[312808426,1706285439933,-500.0,0.00043835,31]
[312808427,1706285439943,-500.0,0.00043835,31]
[312808428,1706285439952,-500.0,0.00043835,31]
[312808429,1706285439962,-937.81,0.00043835,31]
[312808430,1706285439970,-600.0,0.00043835,2]
[312808431,1706285439980,-500.0,0.00043835,31]
[312808432,1706285439990,-500.0,0.00043835,31]
[312808433,1706285440001,-500.0,0.00043835,31]
[312808434,1706285440009,-398.39581348,0.00043835,31]
[312808435,1706285440118,-500.0,0.00043835,31]
[312808436,1706285440128,-500.0,0.00043835,31]
[312808437,1706285440138,-500.0,0.00043835,31]
[312808438,1706285440147,-1000.0,0.00043835,2]
[312808439,1706285440156,-500.0,0.00043835,31]
[312808440,1706285440165,-500.0,0.00043835,31]
[312808441,1706285440175,-500.0,0.00043835,31]
[312808442,1706285440184,-500.0,0.00043835,31]
[312808443,1706285440193,-500.0,0.00043835,31]
[312808444,1706285440203,-500.0,0.00043835,2]
[312808445,1706285440213,-652.87,0.00043835,31]
[312808446,1706285440224,-500.0,0.00043835,31]
[312808447,1706285440233,-500.0,0.00043835,31]
[312808448,1706285440242,-660.53,0.00043835,31]
[312808449,1706285440253,-660.53,0.00043835,31]
[312808450,1706285440262,-660.53,0.00043835,31]
[312808451,1706285440271,-500.0,0.00043835,31]
[312808452,1706285440281,-660.53,0.00043835,31]
[312808453,1706285440290,-660.53,0.00043835,31]
[312808454,1706285440300,-660.53,0.00043835,31]
[312808455,1706285440309,-660.53,0.00043835,31]
[312808456,1706285440318,-660.53,0.00043835,31]
[312808457,1706285440328,-660.53,0.00043835,31]
[312808458,1706285440337,-660.53,0.00043835,31]
[312808459,1706285440346,-660.53,0.00043835,31]
[312808460,1706285440355,-660.53,0.00043835,31]
[312808461,1706285440365,-660.53,0.00043835,31]
[312808462,1706285440374,-660.53,0.00043835,31]
[312808463,1706285440383,-660.53,0.00043835,31]
[312808464,1706285440393,-660.53,0.00043835,31]
[312808465,1706285440402,-660.53,0.00043835,31]
[312808466,1706285440410,-660.53,0.00043835,31]
[312808468,1706285440419,-660.53,0.00043835,31]
[312808470,1706285440428,-660.53,0.00043835,31]
[312808471,1706285440437,-660.53,0.00043835,31]
[312808473,1706285440446,-660.53,0.00043835,31]
[312808475,1706285440455,-660.53,0.00043835,31]
[312808477,1706285440464,-660.63862677,0.00043835,31]
[312808478,1706285440473,-500.0,0.00043835,31]
[312808479,1706285440482,-500.0,0.00043835,31]
[312808480,1706285440491,-500.0,0.00043835,31]
[312808481,1706285440500,-500.0,0.00043835,31]
[312808482,1706285440510,-1000.0,0.00043835,5]
[312808483,1706285440519,-500.0,0.00043835,31]
[312808485,1706285440528,-500.0,0.00043835,31]
[312808486,1706285440537,-500.0,0.00043835,31]
[312808487,1706285440546,-500.0,0.00043835,31]
[312808488,1706285440555,-604.88,0.00043835,31]
[312808489,1706285440564,-1811.46,0.00043835,31]
[312808490,1706285440574,-535.96724031,0.00043835,31]
[312808491,1706285440582,-1975.82,0.00043835,2]
[312808492,1706285440592,-500.0,0.00043835,31]
[312808493,1706285440601,-500.0,0.00043835,31]
[312808494,1706285440610,-500.0,0.00043835,31]
[312808495,1706285440619,-500.0,0.00043835,31]
[312808496,1706285440628,-500.0,0.00043835,31]
[312808497,1706285440637,-500.0,0.00043835,31]
[312808498,1706285440649,-1711.66,0.00043835,31]
[312808499,1706285440658,-500.0,0.00043835,31]
[312808500,1706285440666,-500.0,0.00043835,31]
[312808501,1706285440675,-500.0,0.00043835,31]
[312808502,1706285440685,-500.0,0.00043835,31]
[312808503,1706285440694,-500.0,0.00043835,31]
[312808504,1706285440703,-500.0,0.00043835,31]
[312808505,1706285440712,-500.0,0.00043835,31]
[312808506,1706285440723,-527.2,0.00043835,31]
[312808507,1706285440733,-500.0,0.00043835,31]
[312808508,1706285440742,-390.0,0.00043835,31]
[312808509,1706285440751,-981.47,0.00043835,31]
[312808510,1706285440760,-500.0,0.00043835,31]
[312808511,1706285440769,-506.07,0.00043835,31]
[312808512,1706285440778,-500.0,0.00043835,31]
[312808513,1706285440787,-597.19,0.00043835,31]
[312808514,1706285440796,-500.0,0.00043835,31]
[312808515,1706285440805,-500.0,0.00043835,31]
[312808516,1706285440814,-500.0,0.00043835,31]
[312808517,1706285440823,-1156.98,0.00043835,31]
[312808518,1706285440832,-500.0,0.00043835,31]
[312808519,1706285440841,-500.0,0.00043835,31]
[312808520,1706285440850,-500.0,0.00043835,2]
[312808521,1706285440859,-500.0,0.00043835,31]
[312808522,1706285440868,-519.73,0.00043835,31]
[312808523,1706285440878,-535.99,0.00043835,7]
[312808524,1706285440887,-500.0,0.00043835,31]
[312808525,1706285440896,-500.0,0.00043835,31]
[312808526,1706285440905,-500.0,0.00043835,31]
[312808527,1706285440914,-500.0,0.00043835,31]
[312808528,1706285440924,-500.0,0.00043835,31]
[312808529,1706285440933,-1000.0,0.00043835,2]
[312808530,1706285440942,-689.25,0.00043835,31]
[312808531,1706285440951,-1241.0,0.00043835,31]
[312808532,1706285440961,-2212.44,0.00043835,31]
[312808533,1706285440970,-1841.75,0.00043835,31]
[312808534,1706285440979,-1401.85,0.00043835,31]
[312808535,1706285440988,-500.0,0.00043835,31]
[312808536,1706285440998,-500.0,0.00043835,31]
[312808537,1706285441008,-500.0,0.00043835,31]
[312808538,1706285441017,-500.0,0.00043835,2]
[312808539,1706285441025,-556.45,0.00043835,31]
[312808540,1706285441035,-500.0,0.00043835,31]
[312808541,1706285441044,-500.0,0.00043835,31]
[312808542,1706285441053,-308.85595383,0.00043835,31]
[312808543,1706285441062,-500.0,0.00043835,31]
[312808544,1706285441071,-1183.33,0.00043835,10]
[312808545,1706285441080,-3916.05,0.00043835,31]
[312808546,1706285441089,-500.0,0.00043835,31]
[312808547,1706285441097,-500.0,0.00043835,31]
[312808548,1706285441106,-518.66,0.00043835,31]
[312808549,1706285441116,-1000.0,0.00043835,2]
[312808550,1706285441125,-500.0,0.00043835,31]
[312808551,1706285441134,-500.0,0.00043835,31]
[312808552,1706285441143,-500.0,0.00043835,31]
[312808553,1706285441153,-500.0,0.00043835,31]
[312808554,1706285441162,-500.0,0.00043835,31]
[312808555,1706285441171,-220.0,0.00043835,2]
[312808556,1706285441180,-500.0,0.00043835,31]
[312808557,1706285441189,-500.0,0.00043835,31]
[312808558,1706285441199,-659.02,0.00043835,2]
[312808559,1706285441208,-2902.28,0.00043835,2]
[312808560,1706285441217,-1592.59,0.00043835,31]
[312808561,1706285441226,-500.0,0.00043835,31]
[312808562,1706285441235,-7800.01,0.00043835,31]
[312808564,1706285441245,-500.0,0.00043835,7]
[312808565,1706285441255,-2535.66,0.00043835,31]
[312808566,1706285441263,-500.0,0.00043835,31]
[312808568,1706285441273,-1162.91,0.00043835,31]
[312808569,1706285441282,-643.36,0.00043835,31]
[312808570,1706285441291,-10322.22,0.00043835,14]
[312808571,1706285441300,-240.10002939,0.00043835,31]
[312808572,1706285441309,-500.0,0.00043835,31]
[312808573,1706285441318,-600.0,0.00043835,31]
[312808574,1706285441327,-500.0,0.00043835,31]
[312808575,1706285441336,-500.0,0.00043835,31]
[312808576,1706285441345,-623.03,0.00043835,31]
[312808577,1706285441355,-1000.0,0.00043836,2]
[312808578,1706285441364,-1000.0,0.00043836,2]
[312808579,1706285441373,-1000.0,0.00043836,2]
[312808580,1706285441382,-1000.0,0.00043836,2]
[312808581,1706285441392,-1000.0,0.00043836,2]
[312808582,1706285441401,-1000.0,0.00043836,2]
[312808583,1706285441410,-335.507587,0.00043836,2]
[312808584,1706285441419,-157.76962,0.00043836,2]
[312808585,1706285441430,-157.07269304,0.00043861,30]
[312808586,1706285441440,-584.68124437,0.00043999,30]
[312808587,1706285441449,-500.0,0.00044,15]
[312808588,1706285441458,-2190.0,0.00044,14]
[312808589,1706285441467,-42839.80854651,0.00044,2]
[312808590,1706285441484,-2598.19145349,0.00044,2]
[312808591,1706285441493,-5499.99999807,0.00044,2]
[312808592,1706285441502,-2104.65807132,0.00044,7]
[312808596,1706285441622,-46904.90529864,0.00044,7]
[312808598,1706285441633,-3876.67314061,0.00044,7]
[312808600,1706285441646,-14511.89192122,0.00044,7]
[312808622,1706285443445,-302.00997705,0.00037314,4]
[312808623,1706285443456,-88.33189241,0.00043835,31]
[312808624,1706285443518,-113.58820892,0.00043835,31]
[312808625,1706285443527,-500.0,0.00043835,31]
[312808626,1706285443536,-72239.63276385,0.00044,7]
[312808628,1706285443546,-1000.0,0.00044,44]
[312808630,1706285443556,-6035.14453345,0.00044,120]
[312808631,1706285443566,-153.90157927,0.00044059,30]
[312808632,1706285443576,-853.11973773,0.00044081,2]
[312808633,1706285443659,-157.07269304,0.00044105,30]
[312808634,1706285443669,-166.05106444,0.00044177,30]
[312808635,1706285443679,-160.0,0.00044248,4]
[312808636,1706285443689,-4505.746673,0.000443,20]
[312808637,1706285443698,-4006.249549,0.000443,20]
[312808638,1706285443707,-157.07269304,0.00044357,30]
[312808639,1706285443717,-157.07269304,0.00044373,30]
[312808640,1706285443727,-1000.0,0.00044383,7]
[312808641,1706285443736,-1000.0,0.00044383,2]
[312808642,1706285443746,-500.0,0.00044383,31]
[312808643,1706285443757,-1010.24,0.00044383,31]
[312808644,1706285443766,-500.0,0.00044383,31]
[312808645,1706285443774,-500.0,0.00044383,31]
[312808646,1706285443784,-500.0,0.00044383,31]
[312808647,1706285443793,-500.0,0.00044383,7]
[312808648,1706285443802,-502.80465247,0.00044383,31]
[312808649,1706285443812,-1880.12,0.00044383,2]
[312808650,1706285443821,-500.0,0.00044383,31]
[312808651,1706285443830,-521.46,0.00044383,31]
[312808652,1706285443839,-500.0,0.00044383,31]
[312808653,1706285443848,-500.0,0.00044383,31]
[312808654,1706285443858,-500.0,0.00044383,31]
[312808655,1706285443867,-500.0,0.00044383,31]
[312808656,1706285443877,-500.0,0.00044383,31]
[312808657,1706285443886,-500.0,0.00044383,31]
[312808658,1706285443894,-500.0,0.00044383,31]
[312808659,1706285443904,-500.0,0.00044383,31]
[312808660,1706285443913,-500.0,0.00044383,31]
[312808661,1706285443923,-500.0,0.00044383,31]
[312808662,1706285443932,-602.44690464,0.00044383,31]
[312808663,1706285443941,-500.0,0.00044383,31]
[312808664,1706285443950,-500.0,0.00044383,31]
[312808665,1706285443960,-500.0,0.00044383,31]
[312808666,1706285443969,-1251.88,0.00044383,31]
[312808667,1706285443979,-500.0,0.00044383,31]
[312808668,1706285443988,-500.0,0.00044383,31]
[312808669,1706285443997,-500.0,0.00044383,31]
[312808670,1706285444007,-500.0,0.00044383,31]
[312808671,1706285444016,-500.0,0.00044383,31]
[312808672,1706285444025,-937.81,0.00044383,31]
[312808673,1706285444034,-600.0,0.00044383,2]
[312808674,1706285444043,-500.0,0.00044383,31]
[312808675,1706285444052,-500.0,0.00044383,31]
[312808676,1706285444062,-500.0,0.00044383,31]
[312808677,1706285444071,-500.0,0.00044383,31]
[312808678,1706285444080,-500.0,0.00044383,31]
[312808679,1706285444089,-508.23528171,0.00044383,31]
[312808680,1706285444098,-1000.0,0.00044383,2]
[312808681,1706285444107,-500.0,0.00044383,31]
[312808682,1706285444116,-500.0,0.00044383,31]
[312808683,1706285444125,-500.0,0.00044383,31]
[312808684,1706285444134,-500.0,0.00044383,31]
[312808685,1706285444143,-500.0,0.00044383,31]
[312808686,1706285444153,-500.0,0.00044383,2]
[312808687,1706285444162,-652.87,0.00044383,31]
[312808688,1706285444172,-500.0,0.00044383,31]
[312808689,1706285444181,-500.0,0.00044383,31]
[312808690,1706285444190,-500.0,0.00044383,31]
[312808691,1706285444199,-500.0,0.00044383,31]
[312808692,1706285444208,-500.0,0.00044383,31]
[312808693,1706285444218,-500.0,0.00044383,31]
[312808694,1706285444227,-500.0,0.00044383,31]
[312808695,1706285444236,-1007.0473038,0.00044383,5]
[312808696,1706285444245,-500.0,0.00044383,31]
[312808697,1706285444256,-500.0,0.00044383,31]
[312808698,1706285444265,-500.0,0.00044383,31]
[312808699,1706285444275,-500.0,0.00044383,31]
[312808700,1706285444284,-604.88,0.00044383,31]
[312808701,1706285444293,-1811.46,0.00044383,31]
[312808702,1706285444302,-1975.82,0.00044383,2]
[312808703,1706285444311,-500.0,0.00044383,31]
[312808704,1706285444321,-500.0,0.00044383,31]
[312808705,1706285444330,-500.0,0.00044383,31]
[312808706,1706285444339,-500.0,0.00044383,31]
[312808707,1706285444348,-418.97717604,0.00044383,31]
[312808708,1706285444357,-500.0,0.00044383,31]
[312808709,1706285444367,-1711.66,0.00044383,31]
[312808710,1706285444376,-500.0,0.00044383,31]
[312808711,1706285444385,-500.0,0.00044383,31]
[312808712,1706285444394,-500.0,0.00044383,31]
[312808713,1706285444403,-500.0,0.00044383,31]
[312808714,1706285444412,-500.0,0.00044383,31]
[312808715,1706285444422,-527.2,0.00044383,31]
[312808716,1706285444432,-500.0,0.00044383,31]
[312808717,1706285444441,-981.47,0.00044383,31]
[312808718,1706285444450,-500.0,0.00044383,31]
[312808719,1706285444460,-506.07,0.00044383,31]
[312808720,1706285444469,-500.0,0.00044383,31]
[312808721,1706285444478,-597.19,0.00044383,31]
[312808722,1706285444487,-500.0,0.00044383,31]
[312808723,1706285444496,-500.0,0.00044383,31]
[312808724,1706285444506,-500.0,0.00044383,31]
[312808725,1706285444516,-1156.98,0.00044383,31]
[312808726,1706285444525,-413.93386279,0.00044383,31]
[312808727,1706285444535,-500.0,0.00044383,31]
[312808728,1706285444545,-500.0,0.00044383,2]
[312808729,1706285444556,-500.0,0.00044383,31]
[312808730,1706285444566,-519.73,0.00044383,31]
[312808731,1706285444576,-535.99,0.00044383,7]
[312808732,1706285444586,-500.0,0.00044383,31]
[312808733,1706285444596,-500.0,0.00044383,31]
[312808734,1706285444606,-500.0,0.00044383,31]
[312808735,1706285444615,-500.0,0.00044383,31]
[312808736,1706285444625,-500.0,0.00044383,31]
[312808737,1706285444638,-1000.0,0.00044383,2]
[312808738,1706285444647,-689.25,0.00044383,31]
[312808739,1706285444657,-1241.0,0.00044383,31]
[312808740,1706285444671,-2212.44,0.00044383,31]
[312808741,1706285444680,-1841.75,0.00044383,31]
[312808742,1706285444692,-1401.85,0.00044383,31]
[312808743,1706285444702,-500.0,0.00044383,31]
[312808744,1706285444711,-500.0,0.00044383,31]
[312808745,1706285444727,-500.0,0.00044383,31]
[312808746,1706285444737,-500.0,0.00044383,2]
[312808747,1706285444747,-556.45,0.00044383,31]
[312808748,1706285444760,-500.0,0.00044383,31]
[312808749,1706285444770,-500.0,0.00044383,31]
[312808750,1706285444779,-500.0,0.00044383,31]
[312808751,1706285444792,-1183.33,0.00044383,10]
[312808752,1706285444801,-3916.05,0.00044383,31]
[312808753,1706285444810,-500.0,0.00044383,31]
[312808754,1706285444819,-500.0,0.00044383,31]
[312808755,1706285444829,-518.66,0.00044383,31]
[312808756,1706285444838,-1000.0,0.00044383,2]
[312808757,1706285444848,-500.0,0.00044383,31]
[312808758,1706285444857,-517.21069753,0.00044383,31]
[312808759,1706285444866,-500.0,0.00044383,31]
[312808760,1706285444875,-500.0,0.00044383,31]
[312808761,1706285444884,-404.52886472,0.00044383,31]
[312808762,1706285444896,-220.0,0.00044383,2]
[312808763,1706285444905,-500.0,0.00044383,31]
[312808764,1706285444914,-500.0,0.00044383,31]
[312808765,1706285444923,-659.02,0.00044383,2]
[312808766,1706285444931,-2902.28,0.00044383,2]
[312808767,1706285444940,-1592.59,0.00044383,31]
[312808768,1706285444949,-500.0,0.00044383,31]
[312808769,1706285444958,-7800.01,0.00044383,31]
[312808770,1706285444967,-500.0,0.00044383,7]
[312808771,1706285444976,-2535.66,0.00044383,31]
[312808772,1706285444986,-500.0,0.00044383,31]
[312808773,1706285444995,-1162.91,0.00044383,31]
[312808774,1706285445007,-643.36,0.00044383,31]
[312808775,1706285445016,-10322.22,0.00044383,14]
[312808776,1706285445026,-500.0,0.00044383,31]
[312808777,1706285445035,-400.43909952,0.00044383,31]
[312808778,1706285445045,-500.0,0.00044383,31]
[312808779,1706285445054,-500.0,0.00044383,31]
[312808780,1706285445064,-623.03,0.00044383,31]
[312808781,1706285445075,-500.0,0.00044383,31]
[312808782,1706285445084,-157.07269304,0.00044502,30]
[312808783,1706285445093,-2000.0,0.00044522,2]
[312808784,1706285445102,-405.0,0.00044747,120]
[312808785,1706285445112,-160.0,0.00044793,5]
[312808786,1706285445121,-300.0,0.000448,24]
[312808787,1706285445130,-1000.0,0.00044931,7]
[312808788,1706285445140,-1020.94858016,0.00044931,2]
[312808789,1706285445149,-500.0,0.00044931,31]
[312808790,1706285445158,-1010.24,0.00044931,31]
[312808791,1706285445167,-500.0,0.00044931,31]
[312808792,1706285445177,-500.0,0.00044931,31]
[312808793,1706285445186,-500.0,0.00044931,31]
[312808794,1706285445195,-500.0,0.00044931,7]
[312808795,1706285445204,-1880.12,0.00044931,2]
[312808796,1706285445213,-500.0,0.00044931,31]
[312808797,1706285445222,-521.46,0.00044931,31]
[312808798,1706285445232,-500.0,0.00044931,31]
[312808799,1706285445241,-500.0,0.00044931,31]
[312808800,1706285445250,-500.0,0.00044931,31]
[312808801,1706285445263,-500.0,0.00044931,31]
[312808802,1706285445272,-500.0,0.00044931,31]
[312808803,1706285445282,-500.0,0.00044931,31]
[312808804,1706285445291,-500.0,0.00044931,31]
[312808805,1706285445301,-500.0,0.00044931,31]
[312808806,1706285445310,-500.0,0.00044931,31]
[312808807,1706285445319,-500.0,0.00044931,31]
[312808808,1706285445328,-500.0,0.00044931,31]
[312808809,1706285445337,-500.0,0.00044931,31]
[312808810,1706285445413,-502.98900751,0.00044931,31]
[312808811,1706285445423,-1251.88,0.00044931,31]
[312808812,1706285445433,-500.0,0.00044931,31]
[312808813,1706285445442,-500.0,0.00044931,31]
[312808814,1706285445451,-500.0,0.00044931,31]
[312808815,1706285445460,-500.0,0.00044931,31]
[312808816,1706285445469,-500.0,0.00044931,31]
[312808817,1706285445478,-937.81,0.00044931,31]
[312808818,1706285445487,-600.0,0.00044931,2]
[312808819,1706285445496,-500.0,0.00044931,31]
[312808820,1706285445508,-500.0,0.00044931,31]
[312808821,1706285445517,-500.0,0.00044931,31]
[312808822,1706285445526,-500.0,0.00044931,31]
[312808823,1706285445535,-500.0,0.00044931,31]
[312808824,1706285445544,-1000.0,0.00044931,2]
[312808825,1706285445553,-500.0,0.00044931,31]
[312808826,1706285445562,-473.60954014,0.00044931,31]
[312808827,1706285445571,-500.0,0.00044931,31]
[312808828,1706285445580,-500.0,0.00044931,31]
[312808829,1706285445589,-500.0,0.00044931,31]
[312808830,1706285445598,-500.0,0.00044931,2]
[312808831,1706285445607,-652.87,0.00044931,31]
[312808832,1706285445616,-500.0,0.00044931,31]
[312808833,1706285445625,-500.0,0.00044931,31]
[312808834,1706285445639,-500.0,0.00044931,31]
[312808835,1706285445648,-500.0,0.00044931,31]
[312808836,1706285445657,-500.0,0.00044931,31]
[312808837,1706285445665,-500.0,0.00044931,31]
[312808838,1706285445676,-500.0,0.00044931,31]
[312808839,1706285445685,-500.0,0.00044931,31]
[312808840,1706285445694,-500.0,0.00044931,31]
[312808841,1706285445703,-500.0,0.00044931,31]
[312808842,1706285445712,-286.57548803,0.00044931,31]
[312808843,1706285445721,-1811.46,0.00044931,31]
[312808844,1706285445733,-604.88,0.00044931,31]
[312808845,1706285445742,-1975.82,0.00044931,2]
[312808846,1706285445752,-500.0,0.00044931,31]
[312808847,1706285445763,-500.0,0.00044931,31]
[312808848,1706285445772,-500.0,0.00044931,31]
[312808849,1706285445781,-500.0,0.00044931,31]
[312808850,1706285445790,-500.0,0.00044931,31]
[312808851,1706285445799,-1711.66,0.00044931,31]
[312808853,1706285445809,-500.0,0.00044931,31]
[312808855,1706285445818,-500.0,0.00044931,31]